fUSD/lending_fUSD_20250105
["ID","MTS","AMOUNT","RATE_DAILY","PERIOD"]
[347757453,1736094671204,-772.45,0.00010684,2]
[347757454,1736094671218,-2261.04,0.00010684,2]
[347757455,1736094671228,-574.97,0.00010684,2]
[347757456,1736094671236,-500.0,0.00010684,2]
[347757457,1736094671245,-1517.49,0.00010684,2]
[347757458,1736094671256,-1136.66,0.00010684,2]
[347757459,1736094671266,-601.24,0.00010684,2]
[347757460,1736094671276,-3679.45,0.00010684,2]
[347757461,1736094671285,-801.92,0.00010684,2]
[347757462,1736094671295,-2296.67,0.00010684,2]
[347757463,1736094671305,-511.65,0.00010684,2]
[347757464,1736094671315,-716.67,0.00010684,2]
[347757465,1736094671325,-500.0,0.00010684,2]
[347757466,1736094671335,-1000.95,0.00010684,2]
[347757467,1736094671345,-2823.47,0.00010684,2]
[347757468,1736094671354,-869.41,0.00010684,2]
[347757469,1736094671364,-702.57,0.00010684,2]
[347757470,1736094671373,-1961.5,0.00010684,2]
[347757471,1736094671383,-1511.92,0.00010684,2]
[347757472,1736094671394,-980.35,0.00010684,2]
[347757473,1736094671404,-152.483732,0.00010684,2]
[347757474,1736094671415,-1573.26,0.00010684,2]
[347757475,1736094671426,-716.72,0.00010684,2]
[347757476,1736094671436,-685.49,0.00010684,2]
[347757477,1736094671446,-3227.6,0.00010684,2]
[347757478,1736094671459,-812.36,0.00010684,2]
[347757479,1736094671469,-1820.78,0.00010684,2]
[347757480,1736094671479,-2219.13,0.00010684,2]
[347757481,1736094671489,-574.8,0.00010684,2]
[347757482,1736094671500,-826.26,0.00010684,2]
[347757483,1736094671511,-1688.51,0.00010684,2]
[347757484,1736094671521,-1052.05,0.00010684,2]
[347757485,1736094671531,-3518.04,0.00010684,2]
[347757486,1736094671541,-659.66,0.00010684,2]
[347757487,1736094671551,-500.0,0.00010684,2]
[347757488,1736094671562,-1016.28,0.00010684,2]
[347757489,1736094671572,-500.0,0.00010684,2]
[347757490,1736094671582,-500.0,0.00010684,2]
[347757491,1736094671592,-588.33,0.00010684,2]
[347757492,1736094671603,-753.31,0.00010684,2]
[347757493,1736094671614,-500.0,0.00010684,2]
[347757494,1736094671624,-2262.5,0.00010684,2]
[347757495,1736094671634,-500.0,0.00010684,2]
[347757496,1736094671644,-150.133036,0.00010684,2]
[347757497,1736094671655,-6438.35,0.00010684,2]
[347757498,1736094671665,-874.96,0.00010684,2]
[347757499,1736094671675,-913.17,0.00010684,2]
[347757500,1736094671685,-919.19,0.00010684,2]
[347757501,1736094671695,-500.0,0.00010684,2]
[347757502,1736094671706,-1116.37,0.00010684,2]
[347757503,1736094671716,-648.72,0.00010684,2]
[347757504,1736094671726,-1766.84,0.00010684,2]
[347757505,1736094671798,-758.57,0.00010684,2]
[347757506,1736094671808,-506.41,0.00010684,2]
[347757507,1736094671818,-1972.52,0.00010684,2]
[347757508,1736094671828,-863.83,0.00010684,2]
[347757509,1736094671838,-500.0,0.00010684,2]
[347757510,1736094671848,-500.0,0.00010684,2]
[347757511,1736094671858,-440.37,0.00010684,2]
[347757512,1736094671868,-500.0,0.00010684,2]
[347757513,1736094671878,-500.0,0.00010684,2]
[347757514,1736094671887,-962.38,0.00010684,2]
[347757515,1736094671897,-1056.87,0.00010684,2]
[347757516,1736094671906,-352.19541348,0.00010684,2]
[347757517,1736094671916,-727.28,0.00010684,2]
[347757518,1736094671926,-1324.44,0.00010684,2]
[347757519,1736094671935,-1975.91,0.00010684,2]
[347757520,1736094671945,-680.78,0.00010684,2]
[347757521,1736094671957,-500.0,0.00010684,2]
[347757522,1736094671966,-1645.11,0.00010684,2]
[347757523,1736094671976,-2676.27,0.00010684,2]
[347757524,1736094671985,-500.0,0.00010684,2]
[347757525,1736094671995,-399.53,0.00010801,2]
[347757526,1736094672005,-1000.0,0.00010857,2]
[347757527,1736094672014,-2042.98532363,0.00010858,2]
[347757528,1736094672024,-189.53384069,0.00010858,2]
[347757529,1736094672034,-599.80840763,0.000109,2]
[347757530,1736094672044,-599.80840756,0.000109,2]
[347757531,1736094672053,-599.80840756,0.000109,2]
[347757532,1736094672063,-599.80840756,0.000109,2]
[347757533,1736094672073,-599.80840756,0.000109,2]
[347757534,1736094672082,-208.0,0.0001091,2]
[347757535,1736094672091,-515.5156276,0.00010958,2]
[347757536,1736094672101,-500.0,0.00010958,2]
[347757537,1736094672110,-1230.7,0.00010958,2]
[347757538,1736094672119,-500.0,0.00010958,2]
[347757539,1736094672128,-500.0,0.00010958,2]
[347757540,1736094672138,-599.16,0.00010958,2]
[347757541,1736094672147,-500.0,0.00010958,2]
[347757542,1736094672156,-500.0,0.00010958,2]
[347757543,1736094672165,-187.91,0.00010958,2]
[347757544,1736094672174,-500.0,0.00010958,2]
[347757545,1736094672184,-500.0,0.00010958,2]
[347757546,1736094672193,-500.0,0.00010958,2]
[347757547,1736094672202,-500.0,0.00010958,2]
[347757548,1736094672214,-1808.48,0.00010958,2]
[347757549,1736094672222,-500.0,0.00010958,2]
[347757550,1736094672230,-355.09799719,0.00010958,2]
[347757551,1736094672239,-500.0,0.00010958,2]
[347757552,1736094672249,-716.91,0.00010958,2]
[347757553,1736094672258,-500.0,0.00010958,2]
[347757554,1736094672267,-1425.76,0.00010958,2]
[347757555,1736094672276,-500.0,0.00010958,2]
[347757556,1736094672286,-1615.98,0.00010958,2]
[347757557,1736094672296,-500.0,0.00010958,2]
[347757558,1736094672305,-500.0,0.00010958,2]
[347757559,1736094672315,-500.0,0.00010958,2]
[347757560,1736094672325,-500.0,0.00010958,2]
[347757561,1736094672335,-500.0,0.00010958,2]
[347757562,1736094672344,-500.0,0.00010958,2]
[347757563,1736094672354,-2103.76,0.00010958,2]
[347757564,1736094672363,-548.94,0.00010958,2]
[347757565,1736094672373,-622.54,0.00010958,2]
[347757566,1736094672382,-588.68,0.00010958,2]
[347757567,1736094672392,-856.59,0.00010958,2]
[347757568,1736094672400,-500.0,0.00010958,2]
[347757569,1736094672410,-699.56,0.00010958,2]
[347757570,1736094672423,-500.0,0.00010958,2]
[347757571,1736094672433,-551.19,0.00010958,2]
[347757572,1736094672442,-1746.71,0.00010958,2]
[347757573,1736094672452,-500.0,0.00010958,2]
[347757574,1736094672467,-500.0,0.00010958,2]
[347757575,1736094672476,-742.17,0.00010958,2]
[347757576,1736094672485,-608.14,0.00010958,2]
[347757577,1736094672497,-558.83,0.00010958,2]
[347757578,1736094672507,-500.0,0.00010958,2]
[347757579,1736094672517,-812.77,0.00010958,2]
[347757580,1736094672527,-569.03,0.00010958,2]
[347757581,1736094672537,-500.0,0.00010958,2]
[347757582,1736094672546,-500.0,0.00010958,2]
[347757583,1736094672556,-500.0,0.00010958,2]
[347757584,1736094672566,-661.71,0.00010958,2]
[347757585,1736094672576,-696.27,0.00010958,2]
[347757586,1736094672586,-687.79,0.00010958,2]
[347757587,1736094672596,-500.0,0.00010958,2]
[347757588,1736094672605,-556.61,0.00010958,2]
[347757589,1736094672615,-942.62,0.00010958,2]
[347757590,1736094672625,-719.4,0.00010958,2]
[347757591,1736094672635,-631.65,0.00010958,2]
[347757592,1736094672645,-832.23,0.00010958,2]
[347757593,1736094672654,-1675.1,0.00010958,2]
[347757594,1736094672664,-5015.81,0.00010958,2]
[347757595,1736094672673,-677.54,0.00010958,2]
[347757596,1736094672683,-543.04,0.00010958,2]
[347757597,1736094672693,-500.0,0.00010958,2]
[347757598,1736094672703,-627.27,0.00010958,2]
[347757599,1736094672714,-500.0,0.00010958,2]
[347757600,1736094672724,-1050.4,0.00010958,2]
[347757601,1736094672733,-500.0,0.00010958,2]
[347757602,1736094672743,-500.0,0.00010958,2]
[347757603,1736094672754,-1161.33,0.00010958,2]
[347757604,1736094672764,-500.0,0.00010958,2]
[347757605,1736094672774,-724.87,0.00010958,2]
[347757606,1736094672784,-565.2327639,0.00010958,2]
[347757607,1736094672794,-500.0,0.00010958,2]
[347757608,1736094672804,-631.04,0.00010958,2]
[347757609,1736094672815,-500.0,0.00010958,2]
[347757610,1736094672824,-594.95,0.00010958,2]
[347757611,1736094672834,-1113.55,0.00010958,2]
[347757612,1736094672844,-1763.27,0.00010958,2]
[347757613,1736094672854,-500.0,0.00010958,2]
[347757614,1736094672863,-500.0,0.00010958,2]
[347757615,1736094672874,-500.0,0.00010958,2]
[347757616,1736094672885,-752.27,0.00010958,2]
[347757617,1736094672895,-500.0,0.00010958,2]
[347757618,1736094672905,-714.85,0.00010958,2]
[347757619,1736094672914,-816.25,0.00010958,2]
[347757620,1736094672924,-620.8,0.00010958,2]
[347757621,1736094672934,-500.0,0.00010958,2]
[347757622,1736094672943,-621.01,0.00010958,2]
[347757623,1736094672954,-500.0,0.00010958,2]
[347757624,1736094672965,-541.62,0.00010958,2]
[347757625,1736094672974,-601.13,0.00010958,2]
[347757626,1736094672984,-500.0,0.00010958,2]
[347757627,1736094672994,-738.48,0.00010958,2]
[347757628,1736094673003,-500.0,0.00010958,2]
[347757629,1736094673013,-500.0,0.00010958,2]
[347757630,1736094673023,-1683.47,0.00010958,2]
[347757631,1736094673032,-745.35,0.00010958,2]
[347757632,1736094673041,-3134.03,0.00010958,2]
[347757633,1736094673051,-836.0,0.00010958,2]
[347757634,1736094673060,-736.47,0.00010958,2]
[347757635,1736094673069,-500.0,0.00010958,2]
[347757636,1736094673079,-500.0,0.00010958,2]
[347757637,1736094673089,-580.42,0.00010958,2]
[347757638,1736094673099,-500.0,0.00010958,2]
[347757639,1736094673108,-500.0,0.00010958,2]
[347757640,1736094673118,-500.0,0.00010958,2]
[347757641,1736094673131,-520.75,0.00010958,2]
[347757642,1736094673140,-500.0,0.00010958,2]
[347757643,1736094673150,-500.0,0.00010958,2]
[347757644,1736094673159,-1689.29,0.00010958,2]
[347757645,1736094673168,-565.23,0.00010958,2]
[347757646,1736094673178,-683.29,0.00010958,2]
[347757647,1736094673187,-500.0,0.00010958,2]
[347757648,1736094673197,-1085.9,0.00010958,2]
[347757649,1736094673208,-500.0,0.00010958,2]
[347757650,1736094673217,-500.0,0.00010958,2]
[347757651,1736094673227,-741.9,0.00010958,2]
[347757652,1736094673237,-1035.34,0.00010958,2]
[347757653,1736094673246,-500.0,0.00010958,2]
[347757654,1736094673256,-7562.40717395,0.00010958,2]
[347757655,1736094673267,-500.0,0.00010958,2]
[347757656,1736094673277,-500.0,0.00010958,2]
[347757657,1736094673287,-7500.0,0.00010958,2]
[347757658,1736094673296,-500.0,0.00010958,2]
[347757659,1736094673306,-500.0,0.00010958,2]
[347757660,1736094673315,-1834.08,0.00010958,2]
[347757661,1736094673325,-500.0,0.00010958,2]
[347757662,1736094673335,-552.82,0.00010958,2]
[347757663,1736094673344,-731.46,0.00010958,2]
[347757664,1736094673353,-500.0,0.00010958,2]
[347757665,1736094673364,-904.93,0.00010958,2]
[347757666,1736094673374,-557.27,0.00010958,2]
[347757667,1736094673383,-793.93,0.00010958,2]
[347757668,1736094673393,-500.0,0.00010958,2]
[347757669,1736094673402,-811.3,0.00010958,2]
[347757670,1736094673413,-527.7,0.00010958,2]
[347757671,1736094673424,-500.0,0.00010958,2]
[347757672,1736094673434,-500.0,0.00010958,2]
[347757673,1736094673443,-1036.67,0.00010958,2]
[347757674,1736094673452,-509.44,0.00010958,2]
[347757675,1736094673464,-500.0,0.00010958,2]
[347757676,1736094673473,-378.18172076,0.00010958,2]
[347757677,1736094673482,-1405.71,0.00010958,2]
[347757678,1736094673494,-1347.13,0.00010958,2]
[347757679,1736094673504,-1532.82,0.00010958,2]
[347757680,1736094673512,-500.0,0.00010958,2]
[347757681,1736094673523,-500.0,0.00010958,2]
[347757682,1736094673532,-2813.87,0.00010958,2]
[347757683,1736094673542,-799.48,0.00010958,2]
[347757684,1736094673551,-605.75,0.00010958,2]
[347757685,1736094673561,-500.0,0.00010958,2]
[347757686,1736094673570,-659.28,0.00010958,2]
[347757687,1736094673581,-2763.67,0.00010958,2]
[347757688,1736094673590,-500.0,0.00010958,2]
[347757689,1736094673600,-500.0,0.00010958,2]
[347757690,1736094673609,-770.84,0.00010958,2]
[347757691,1736094673619,-589.68,0.00010958,2]
[347757692,1736094673628,-500.0,0.00010958,2]
[347757693,1736094673637,-500.0,0.00010958,2]
[347757694,1736094673647,-3068.98,0.00010958,2]
[347757695,1736094673656,-633.08,0.00010958,2]
[347757696,1736094673666,-779.8,0.00010958,2]
[347757697,1736094673676,-964.94,0.00010958,2]
[347757698,1736094673685,-848.67,0.00010958,2]
[347757699,1736094673695,-1712.37,0.00010958,2]
[347757700,1736094673707,-2292.04,0.00010958,2]
[347757701,1736094673716,-500.0,0.00010958,2]
[347757702,1736094673727,-504.97,0.00010958,2]
[347757703,1736094673736,-769.22,0.00010958,2]
[347757704,1736094673746,-698.27,0.00010958,2]
[347757705,1736094673756,-800.13,0.00010958,2]
[347757706,1736094673766,-1071.25,0.00010958,2]
[347757707,1736094673776,-500.0,0.00010958,2]
[347757708,1736094673786,-1143.16,0.00010958,2]
[347757709,1736094673796,-1626.49,0.00010958,2]
[347757710,1736094673806,-1089.62,0.00010958,2]
[347757711,1736094673815,-565.51,0.00010958,2]
[347757712,1736094673824,-972.29,0.00010958,2]
[347757713,1736094673834,-1044.39,0.00010958,2]
[347757714,1736094673843,-500.0,0.00010958,2]
[347757715,1736094673853,-500.18,0.00010958,2]
[347757716,1736094673862,-508.44,0.00010958,2]
[347757717,1736094673872,-2154.529193,0.00010958,2]
[347757718,1736094673881,-573.87,0.00010958,2]
[347757719,1736094673891,-160.465046,0.00010958,2]
[347757720,1736094673901,-3065.2,0.00010958,2]
[347757721,1736094673911,-1194.71,0.00010958,2]
[347757722,1736094673921,-585.92,0.00010958,2]
[347757723,1736094673930,-500.0,0.00010958,2]
[347757724,1736094673940,-765.52,0.00010958,2]
[347757725,1736094673950,-640.34,0.00010958,2]
[347757726,1736094673960,-3836.73,0.00010958,2]
[347757727,1736094673970,-633.45,0.00010958,2]
[347757728,1736094673980,-1192.98,0.00010958,2]
[347757729,1736094673990,-1291.16,0.00010958,2]
[347757730,1736094673999,-733.94,0.00010958,2]
[347757731,1736094674009,-2011.44575,0.00010958,2]
[347757732,1736094674019,-668.19,0.00010958,2]
[347757733,1736094674029,-722.24,0.00010958,2]
[347757734,1736094674039,-525.52,0.00010958,2]
[347757735,1736094674049,-2191.22,0.00010958,2]
[347757736,1736094674059,-1871.54,0.00010958,2]
[347757737,1736094674069,-3576.39,0.00010958,2]
[347757738,1736094674079,-6128.46,0.00010958,2]
[347757739,1736094674088,-1429.21,0.00010958,2]
[347757740,1736094674098,-554.84,0.00010958,2]
[347757741,1736094674108,-500.0,0.00010958,2]
[347757742,1736094674119,-1747.17,0.00010958,2]
[347757743,1736094674131,-1657.86,0.00010958,2]
[347757744,1736094674140,-813.74,0.00010958,2]
[347757745,1736094674149,-3771.13,0.00010958,2]
[347757746,1736094674158,-515.2,0.00010958,2]
[347757747,1736094674167,-500.0,0.00010958,2]
[347757748,1736094674177,-823.18,0.00010958,2]
[347757749,1736094674186,-902.42,0.00010958,2]
[347757750,1736094674196,-795.93,0.00010958,2]
[347757751,1736094674206,-500.0,0.00010958,2]
[347757752,1736094674215,-710.7,0.00010958,2]
[347757753,1736094674225,-1012.76,0.00010958,2]
[347757754,1736094674234,-500.0,0.00010958,2]
[347757755,1736094674244,-890.9,0.00010958,2]
[347757756,1736094674254,-1433.4,0.00010958,2]
[347757757,1736094674263,-4235.77,0.00010958,2]
[347757758,1736094674272,-5091.48,0.00010958,2]
[347757759,1736094674282,-158.30937,0.00010958,2]
[347757760,1736094674291,-1053.35,0.00010958,2]
[347757761,1736094674300,-992.85,0.00010958,2]
[347757762,1736094674310,-624.79,0.00010958,2]
[347757763,1736094674319,-633.76,0.00010958,2]
[347757764,1736094674329,-578.47,0.00010958,2]
[347757765,1736094674339,-1537.22,0.00010958,2]
[347757766,1736094674350,-2200.96,0.00010958,2]
[347757767,1736094674360,-900.08,0.00010958,2]
[347757768,1736094674370,-4458.65,0.00010958,2]
[347757769,1736094674380,-4463.52,0.00010958,2]
[347757770,1736094674390,-163.360118,0.00010958,2]
[347757771,1736094674400,-1934.39,0.00010958,2]
[347757772,1736094674410,-1315.15,0.00010958,2]
[347757773,1736094674422,-546.5,0.00010958,2]
[347757774,1736094674433,-510.63,0.00010958,2]
[347757775,1736094674442,-500.0,0.00010958,2]
[347757776,1736094674452,-3147.69,0.00010958,2]
[347757777,1736094674465,-748.91,0.00010958,2]
[347757778,1736094674475,-500.0,0.00010958,2]
[347757779,1736094674485,-571.68,0.00010958,2]
[347757780,1736094674495,-500.0,0.00010958,2]
[347757781,1736094674505,-519.79,0.00010958,2]
[347757782,1736094674515,-857.37,0.00010958,2]
[347757783,1736094674526,-772.45,0.00010958,2]
[347757784,1736094674536,-2261.04,0.00010958,2]
[347757785,1736094674546,-574.97,0.00010958,2]
[347757786,1736094674555,-1517.49,0.00010958,2]
[347757787,1736094674566,-500.0,0.00010958,2]
[347757788,1736094674576,-1136.66,0.00010958,2]
[347757789,1736094674586,-601.24,0.00010958,2]
[347757790,1736094674596,-150.925515,0.00010958,2]
[347757791,1736094674607,-3679.45,0.00010958,2]
[347757792,1736094674618,-801.92,0.00010958,2]
[347757793,1736094674629,-2296.67,0.00010958,2]
[347757794,1736094674640,-511.65,0.00010958,2]
[347757795,1736094674650,-716.67,0.00010958,2]
[347757796,1736094674661,-500.0,0.00010958,2]
[347757797,1736094674671,-1000.95,0.00010958,2]
[347757798,1736094674682,-2823.47,0.00010958,2]
[347757799,1736094674692,-869.41,0.00010958,2]
[347757800,1736094674703,-702.57,0.00010958,2]
[347757801,1736094674717,-1961.5,0.00010958,2]
[347757802,1736094674728,-1511.92,0.00010958,2]
[347757803,1736094674738,-980.35,0.00010958,2]
[347757804,1736094674748,-1573.26,0.00010958,2]
[347757805,1736094674758,-716.72,0.00010958,2]
[347757806,1736094674768,-685.49,0.00010958,2]
[347757807,1736094674779,-812.36,0.00010958,2]
[347757808,1736094674790,-3227.6,0.00010958,2]
[347757809,1736094674801,-1820.78,0.00010958,2]
[347757810,1736094674811,-574.8,0.00010958,2]
[347757811,1736094674821,-826.26,0.00010958,2]
[347757812,1736094674831,-2219.13,0.00010958,2]
[347757813,1736094674842,-1052.05,0.00010958,2]
[347757814,1736094674852,-1688.51,0.00010958,2]
[347757815,1736094674863,-3518.04,0.00010958,2]
[347757816,1736094674873,-659.66,0.00010958,2]
[347757817,1736094674884,-500.0,0.00010958,2]
[347757818,1736094674893,-1016.28,0.00010958,2]
[347757819,1736094674903,-500.0,0.00010958,2]
[347757820,1736094674913,-500.0,0.00010958,2]
[347757821,1736094674924,-588.33,0.00010958,2]
[347757822,1736094674935,-753.31,0.00010958,2]
[347757823,1736094674945,-500.0,0.00010958,2]
[347757824,1736094674957,-2262.5,0.00010958,2]
[347757825,1736094674968,-500.0,0.00010958,2]
[347757826,1736094674977,-150.133036,0.00010958,2]
[347757827,1736094674987,-6438.35,0.00010958,2]
[347757828,1736094674997,-874.96,0.00010958,2]
[347757829,1736094675007,-913.17,0.00010958,2]
[347757830,1736094675016,-919.19,0.00010958,2]
[347757831,1736094675026,-500.0,0.00010958,2]
[347757832,1736094675036,-1116.37,0.00010958,2]
[347757833,1736094675046,-648.72,0.00010958,2]
[347757834,1736094675057,-758.57,0.00010958,2]
[347757835,1736094675067,-1766.84,0.00010958,2]
[347757836,1736094675079,-506.41,0.00010958,2]
[347757837,1736094675089,-151.072624,0.00010958,2]
[347757838,1736094675099,-1972.52,0.00010958,2]
[347757839,1736094675110,-863.83,0.00010958,2]
[347757840,1736094675119,-500.0,0.00010958,2]
[347757841,1736094675129,-500.0,0.00010958,2]
[347757842,1736094675139,-500.0,0.00010958,2]
[347757843,1736094675149,-500.0,0.00010958,2]
[347757844,1736094675159,-1056.87,0.00010958,2]
[347757845,1736094675168,-962.38,0.00010958,2]
[347757846,1736094675177,-727.28,0.00010958,2]
[347757847,1736094675187,-1324.44,0.00010958,2]
[347757848,1736094675197,-680.78,0.00010958,2]
[347757849,1736094675206,-1975.91,0.00010958,2]
[347757850,1736094675217,-500.0,0.00010958,2]
[347757851,1736094675227,-1645.11,0.00010958,2]
[347757852,1736094675236,-500.0,0.00010958,2]
[347757853,1736094675247,-2676.27,0.00010958,2]
[347757854,1736094675257,-6653.8,0.00010959,2]
[347757855,1736094675266,-2000.0,0.00010959,2]
[347757856,1736094675276,-2000.0,0.00010959,2]
[347757857,1736094675286,-2000.0,0.00010959,2]
[347757858,1736094675295,-2000.0,0.00010959,2]
[347757859,1736094675305,-2000.0,0.00010959,2]
[347757860,1736094675315,-2000.0,0.00010959,2]
[347757861,1736094675325,-2000.0,0.00010959,2]
[347757862,1736094675335,-2000.0,0.00010959,2]
[347757863,1736094675345,-2000.0,0.00010959,2]
[347757864,1736094675355,-2000.0,0.00010959,2]
[347757865,1736094675365,-2000.0,0.00010959,2]
[347757866,1736094675374,-2000.0,0.00010959,2]
[347757867,1736094675384,-2000.0,0.00010959,2]
[347757868,1736094675394,-2000.0,0.00010959,2]
[347757869,1736094675403,-2000.0,0.00010959,2]
[347757870,1736094675415,-2000.0,0.00010959,2]
[347757871,1736094675425,-2000.0,0.00010959,2]
[347757872,1736094675435,-2000.0,0.00010959,2]
[347757873,1736094675445,-2000.0,0.00010959,2]
[347757874,1736094675455,-2000.0,0.00010959,2]
[347757875,1736094675468,-2000.0,0.00010959,2]
[347757876,1736094675478,-2000.0,0.00010959,2]
[347757877,1736094675490,-2000.0,0.00010959,2]
[347757878,1736094675500,-2000.0,0.00010959,2]
[347757879,1736094675510,-2000.0,0.00010959,2]
[347757880,1736094675519,-2000.0,0.00010959,2]
[347757881,1736094675530,-2000.0,0.00010959,2]
[347757882,1736094675539,-2000.0,0.00010959,2]
[347757883,1736094675549,-2000.0,0.00010959,2]
[347757884,1736094675559,-2000.0,0.00010959,2]
[347757885,1736094675570,-2000.0,0.00010959,2]
[347757886,1736094675580,-2000.0,0.00010959,2]
[347757887,1736094675591,-2000.0,0.00010959,2]
[347757888,1736094675601,-2000.0,0.00010959,2]
[347757889,1736094675611,-2000.0,0.00010959,2]
[347757890,1736094675621,-2000.0,0.00010959,2]
[347757891,1736094675631,-2000.0,0.00010959,2]
[347757892,1736094675641,-2000.0,0.00010959,2]
[347757893,1736094675651,-1612.0,0.00010959,2]
[347757894,1736094675661,-2000.0,0.00010959,2]
[347757895,1736094675670,-2000.0,0.00010959,2]
[347757896,1736094675680,-2000.0,0.00010959,2]
[347757897,1736094675691,-2000.0,0.00010959,2]
[347757898,1736094675701,-2000.0,0.00010959,2]
[347757899,1736094675712,-2000.0,0.00010959,2]
[347757900,1736094675722,-2000.0,0.00010959,2]
[347757901,1736094675733,-150.0,0.00010959,2]
[347757902,1736094675743,-400.0,0.00010986,2]
[347757903,1736094675753,-851.65648171,0.00011,2]
[347757904,1736094675763,-180048.00528131,0.0001103,2]
[347757905,1736094675773,-599.80840756,0.00011034,2]
[347757906,1736094675783,-208.0,0.0001121,2]
[347757907,1736094675793,-500.0,0.00011232,2]
[347757908,1736094675803,-1230.7,0.00011232,2]
[347757909,1736094675813,-500.0,0.00011232,2]
[347757910,1736094675823,-500.0,0.00011232,2]
[347757911,1736094675833,-599.16,0.00011232,2]
[347757912,1736094675842,-500.0,0.00011232,2]
[347757913,1736094675852,-500.0,0.00011232,2]
[347757914,1736094675862,-500.0,0.00011232,2]
[347757915,1736094675872,-500.0,0.00011232,2]
[347757916,1736094675882,-500.0,0.00011232,2]
[347757917,1736094675892,-500.0,0.00011232,2]
[347757918,1736094675901,-1808.48,0.00011232,2]
[347757919,1736094675911,-500.0,0.00011232,2]
[347757920,1736094675922,-500.0,0.00011232,2]
[347757921,1736094675931,-716.91,0.00011232,2]
[347757922,1736094675942,-500.0,0.00011232,2]
[347757923,1736094675952,-1425.76,0.00011232,2]
[347757924,1736094675965,-500.0,0.00011232,2]
[347757925,1736094675975,-1615.98,0.00011232,2]
[347757926,1736094675985,-500.0,0.00011232,2]
[347757927,1736094675995,-500.0,0.00011232,2]
[347757928,1736094676005,-500.0,0.00011232,2]
[347757929,1736094676015,-500.0,0.00011232,2]
[347757930,1736094676024,-500.0,0.00011232,2]
[347757931,1736094676033,-500.0,0.00011232,2]
[347757932,1736094676043,-2103.76,0.00011232,2]
[347757933,1736094676053,-548.94,0.00011232,2]
[347757934,1736094676063,-622.54,0.00011232,2]
[347757935,1736094676074,-588.68,0.00011232,2]
[347757936,1736094676084,-856.59,0.00011232,2]
[347757937,1736094676095,-500.0,0.00011232,2]
[347757938,1736094676106,-699.56,0.00011232,2]
[347757939,1736094676115,-500.0,0.00011232,2]
[347757940,1736094676126,-551.19,0.00011232,2]
[347757941,1736094676136,-500.0,0.00011232,2]
[347757942,1736094676146,-1746.71,0.00011232,2]
[347757943,1736094676156,-500.0,0.00011232,2]
[347757944,1736094676166,-742.17,0.00011232,2]
[347757945,1736094676176,-608.14,0.00011232,2]
[347757946,1736094676191,-558.83,0.00011232,2]
[347757947,1736094676201,-500.0,0.00011232,2]
[347757948,1736094676212,-812.77,0.00011232,2]
[347757949,1736094676222,-569.03,0.00011232,2]
[347757950,1736094676233,-500.0,0.00011232,2]
[347757951,1736094676243,-500.0,0.00011232,2]
[347757952,1736094676252,-500.0,0.00011232,2]